bitfinex-derivatives/quotes_BTCF0:USTF0_20251229
["timestamp","ask_amount","ask_price","bid_price","bid_amount"]
[1767034921597,0.05736,87497.0,87486.0,0.0114426]
[1767034921801,0.03236,87498.0,87486.0,0.0114426]
[1767034922098,0.0114414,87497.0,87479.0,0.09728]
[1767034922298,0.00017143,87497.0,87479.0,0.08089493]
[1767034922507,0.00017143,87497.0,87480.0,0.0114434]
[1767034923304,0.20730023,87490.0,87479.0,0.06945143]
[1767034923701,0.26466023,87490.0,87479.0,0.00017143]
[1767034923902,0.26466023,87490.0,87479.0,0.01161503]
[1767034924606,0.05736,87490.0,87479.0,0.01161503]
[1767034925110,0.05736,87490.0,87479.0,0.00017143]
[1767034926308,0.05736,87489.0,87480.0,0.20730023]
[1767034926508,0.05736,87490.0,87480.0,0.20730023]
[1767034926814,0.05736,87490.0,87481.0,0.0114433]
[1767034928610,0.05736,87490.0,87479.0,0.00017143]
[1767034930212,0.05736,87490.0,87479.0,0.01161493]
[1767034930402,0.05736,87490.0,87479.0,0.00017143]
[1767034933516,0.05736,87490.0,87481.0,0.0114433]
[1767034935119,0.05736,87490.0,87479.0,0.00017143]
[1767034936123,0.05736,87490.0,87479.0,0.01161503]
[1767034936320,0.05736,87489.0,87479.0,0.01161503]
[1767034936618,0.05736,87489.0,87479.0,0.00017143]
[1767034937816,0.05736,87489.0,87480.0,0.0114435]
[1767034939317,0.05736,87489.0,87482.0,0.0114431]
[1767034939519,0.05736,87489.0,87479.0,0.21891516]
[1767034940024,0.05736,87489.0,87481.0,0.0114432]
[1767034942420,0.05736,87489.0,87479.0,0.00017143]
[1767034942719,0.05736,87489.0,87479.0,0.01161503]
[1767034943827,0.05736,87489.0,87479.0,0.00017143]
[1767034944026,0.00017143,87497.0,87479.0,0.20747166]
[1767034944325,0.05736,87506.0,87496.0,0.0114414]
[1767034944522,0.05736,87506.0,87498.0,0.0114411]
[1767034944719,0.06120017,87516.0,87500.0,0.0114408]
[1767034945029,0.06120017,87516.0,87487.0,0.05736]
[1767034945030,0.1546,87515.0,87491.0,0.09724]
[1767034945220,0.00017143,87512.0,87500.0,0.20730023]
[1767034945419,0.00017143,87512.0,87503.0,0.0114404]
[1767034946525,0.00017143,87512.0,87502.0,0.0114405]
[1767034947720,0.00017143,87512.0,87504.0,0.0114403]
[1767034947916,0.06120017,87528.0,87503.0,0.05736]
[1767034948228,0.1546,87527.0,87512.0,0.0114392]
[1767034948420,0.1546,87526.0,87512.0,0.0114392]
[1767034948821,0.1546,87526.0,87510.0,0.20730023]
[1767034949033,0.1546,87526.0,87509.0,0.00017143]
[1767034949223,0.1546,87526.0,87510.0,0.0114395]
[1767034949823,0.1546,87526.0,87510.0,0.21873973]
[1767034950230,0.1546,87526.0,87510.0,0.0114395]
[1767034950433,0.1546,87526.0,87512.0,0.0114392]
[1767034951526,0.00017143,87527.0,87516.0,0.20730023]
[1767034951729,0.05753143,87527.0,87517.0,0.0114386]
[1767034951931,0.05753143,87527.0,87516.0,0.20730023]
[1767034953125,0.00017143,87527.0,87516.0,0.20730023]
[1767034953336,0.06120017,87545.0,87516.0,0.20730023]
[1767034953337,0.06120017,87555.0,87517.0,0.1546]
[1767034953521,0.05736,87550.0,87538.0,0.20730023]
[1767034953835,0.1546,87550.0,87538.0,0.0114359]
[1767034954022,0.1546,87550.0,87538.0,0.21873613]
[1767034954226,0.1546,87550.0,87534.0,0.00017143]
[1767034954530,0.1546,87550.0,87525.0,0.0114376]
[1767034954531,0.01371907,87548.0,87525.0,0.0114376]
[1767034954740,0.01371907,87548.0,87528.0,0.0114372]
[1767034954741,0.00228447,87548.0,87528.0,0.0114372]
[1767034955123,0.00228447,87548.0,87527.0,0.0114373]
[1767034955522,0.00228447,87548.0,87529.0,0.00017143]
[1767034959332,0.00228447,87548.0,87529.0,0.01160843]
[1767034960634,0.00228447,87548.0,87529.0,0.00017143]
[1767034961034,0.0114348,87547.0,87509.0,0.0114396]
[1767034961221,0.00228447,87548.0,87516.0,0.0114387]
[1767034961425,0.0114354,87543.0,87517.0,0.0114386]
[1767034961624,0.0114356,87541.0,87517.0,0.0114386]
[1767034961939,0.0114359,87538.0,87515.0,0.0114388]
[1767034962135,0.00017143,87535.0,87518.0,0.00017143]
[1767034962330,0.05736,87534.0,87518.0,0.00017143]
[1767034962538,0.00017143,87535.0,87518.0,0.00017143]
[1767034962735,0.05736,87533.0,87518.0,0.00017143]
[1767034969435,0.05736,87533.0,87508.0,0.05736]
[1767034969436,0.05736,87533.0,87512.0,0.0114393]
[1767034969748,0.05736,87533.0,87505.0,0.09724]
[1767034970040,0.05736,87533.0,87500.0,0.0114408]
[1767034970442,0.0114384,87519.0,87496.0,0.1086813]
[1767034970639,0.00017143,87516.0,87498.0,0.011441]
[1767034970846,0.05736,87515.0,87498.0,0.011441]
[1767034971943,0.05736,87515.0,87496.0,0.09724]
[1767034972838,0.05736,87515.0,87499.0,0.0114409]
[1767034973740,0.05736,87515.0,87498.0,0.011441]
[1767034973939,0.05736,87515.0,87496.0,0.09724]
[1767034976849,0.05736,87515.0,87497.0,0.0114412]
[1767034979441,0.05736,87515.0,87496.0,0.09724]
[1767034980349,0.05736,87515.0,87499.0,0.0114409]
[1767034980542,0.05736,87515.0,87497.0,0.0114412]
[1767034982055,0.05736,87515.0,87496.0,0.09724]
[1767034982252,0.05736,87515.0,87499.0,0.0114409]
[1767034982453,0.05736,87515.0,87496.0,0.09724]
[1767034982653,0.05736,87515.0,87496.0,0.1086813]
[1767034984762,0.0114399,87508.0,87473.0,0.040922]
[1767034985058,0.0114403,87505.0,87481.0,0.0114432]
[1767034985257,0.00017143,87502.0,87481.0,0.0114432]
[1767034987451,0.00017143,87502.0,87485.0,0.0114428]
[1767034987747,0.00017143,87502.0,87487.0,0.0114424]
[1767034988955,0.21852176,87500.0,87470.0,0.09724]
[1767034989157,0.0114409,87500.0,87470.0,0.09724]
[1767034989555,0.00017143,87502.0,87468.0,0.011445]
[1767034989752,0.05736,87503.0,87443.0,0.1496103]
[1767034989753,0.20708086,87490.0,87443.0,0.1496103]
[1767034989954,0.0114426,87487.0,87461.0,0.0114458]
[1767034990758,0.0114426,87487.0,87464.0,0.0114456]
[1767034991157,0.0114426,87487.0,87448.0,0.09724]
[1767034991465,0.0114426,87487.0,87439.0,0.03088]
[1767034991466,0.01161543,87476.0,87440.0,0.09724]
[1767034991760,0.0114447,87471.0,87443.0,0.0114483]
[1767034992058,0.0114447,87471.0,87445.0,0.0114479]
[1767034993452,0.1546,87475.0,87423.0,0.09724]
[1767034993660,0.0114463,87459.0,87434.0,0.0114495]
[1767034993860,0.1546,87458.0,87434.0,0.6314495]
[1767034994060,0.0114469,87454.0,87430.0,0.0114499]
[1767034994262,0.1660465,87458.0,87430.0,0.0114499]
[1767034994551,0.1660465,87458.0,87432.0,0.0114497]
[1767034994552,9.438e-05,87457.0,87432.0,0.0114497]
[1767034994752,0.0114466,87456.0,87432.0,0.0114497]
[1767034995363,9.438e-05,87457.0,87434.0,0.0114495]
[1767034996661,0.0114467,87456.0,87431.0,0.62]
[1767034996955,0.0114467,87456.0,87430.0,0.0114499]
[1767034997162,0.0114477,87448.0,87424.0,0.0114508]
[1767034997359,0.15468,87447.0,87424.0,0.0114508]
[1767034997556,0.15468,87447.0,87425.0,0.62]
[1767034997759,0.011448,87446.0,87425.0,0.62]
[1767034998168,0.011448,87446.0,87420.0,0.0114512]
[1767034998964,0.15468,87447.0,87394.0,8.549e-05]
[1767034998965,0.2432,87445.0,87394.0,8.549e-05]
[1767034999262,0.011451,87423.0,87396.0,0.0114544]
[1767034999461,0.0114512,87421.0,87394.0,8.549e-05]
[1767034999657,0.0114516,87418.0,87394.0,8.549e-05]
[1767034999861,0.15476,87420.0,87394.0,8.549e-05]
[1767034999862,0.0114519,87416.0,87394.0,8.549e-05]
[1767035000572,0.15476,87415.0,87394.0,0.01154019]
[1767035000764,0.05748,87414.0,87394.0,0.01154019]
[1767035000964,0.05748,87414.0,87394.0,8.549e-05]
[1767035001162,0.0114512,87421.0,87394.0,8.549e-05]
[1767035001359,0.15476,87420.0,87394.0,8.549e-05]
[1767035002574,0.15476,87419.0,87400.0,0.0114539]
[1767035002774,0.15476,87419.0,87394.0,8.549e-05]
[1767035002975,0.15476,87419.0,87395.0,0.0114546]
[1767035003480,0.15476,87419.0,87394.0,8.549e-05]
[1767035003676,0.0114514,87420.0,87394.0,8.549e-05]
[1767035003873,0.1548,87419.0,87395.0,0.0114546]
[1767035004766,0.1548,87418.0,87394.0,8.549e-05]
[1767035005268,0.1662516,87418.0,87394.0,8.549e-05]
[1767035005472,0.0114522,87414.0,87394.0,8.549e-05]
[1767035005866,0.1548,87418.0,87394.0,8.549e-05]
[1767035006076,0.1548,87418.0,87381.0,0.03861559]
[1767035006371,0.00017163,87408.0,87381.0,0.03861559]
[1767035006574,0.1548,87407.0,87386.0,0.0114558]
[1767035006968,9.539e-05,87406.0,87386.0,0.0114558]
[1767035007169,9.539e-05,87406.0,87381.0,0.02715919]
[1767035007575,9.539e-05,87406.0,87386.0,0.0114558]
[1767035009969,9.539e-05,87406.0,87381.0,0.02715919]
[1767035010170,0.1548,87405.0,87390.0,0.0114552]
[1767035010372,0.1548,87405.0,87387.0,0.0114557]
[1767035010674,0.011455,87393.0,87368.0,0.00228918]
[1767035010976,0.00017163,87389.0,87371.0,0.0114576]
[1767035011180,9.029e-05,87388.0,87369.0,0.301458]
[1767035011381,9.029e-05,87388.0,87369.0,0.29]
[1767035011573,0.05752,87404.0,87370.0,0.11442171]
[1767035011882,0.05752,87404.0,87380.0,0.0114565]
[1767035011883,0.05752,87403.0,87380.0,0.0114565]
[1767035012183,0.0114537,87402.0,87376.0,0.011457]
[1767035012377,0.0114541,87400.0,87372.0,0.0114575]
[1767035012580,0.00017163,87395.0,87377.0,0.00017163]
[1767035012781,0.05769163,87395.0,87377.0,0.00017163]
[1767035012979,0.09732,87394.0,87368.0,0.00228918]
[1767035013182,0.00017163,87395.0,87368.0,0.00228918]
[1767035013378,0.0114554,87390.0,87368.0,0.00228918]
[1767035013682,0.14604,87389.0,87368.0,0.00228918]
[1767035013879,0.1574955,87389.0,87368.0,0.00228918]
[1767035014085,0.011456,87385.0,87368.0,0.00228918]
[1767035014282,0.14604,87389.0,87349.0,0.00014701]
[1767035014473,0.00017163,87379.0,87358.0,0.0114593]
[1767035014675,0.15492,87378.0,87358.0,0.0114595]
[1767035014974,0.15492,87377.0,87360.0,0.0114592]
[1767035015374,0.05756,87377.0,87360.0,0.0114592]
[1767035016997,8.958e-05,87384.0,87360.0,0.09736]
[1767035017179,0.0172549,87394.0,87371.0,0.0114576]
[1767035017379,0.0172549,87394.0,87367.0,0.0114582]
[1767035017380,0.0058,87393.0,87367.0,0.0114582]
[1767035017578,0.0114554,87389.0,87364.0,0.0690187]
[1767035018182,0.00017163,87385.0,87368.0,0.00017163]
[1767035018379,0.00017163,87385.0,87369.0,0.011458]
[1767035018579,0.00017163,87385.0,87368.0,0.00017163]
[1767035018580,0.00017163,87385.0,87371.0,0.0114577]
[1767035018786,1.63e-06,87385.0,87371.0,0.0114577]
[1767035019190,1.63e-06,87385.0,87370.0,0.09736]
[1767035019387,1.63e-06,87385.0,87370.0,0.1088178]
[1767035019779,0.05756,87397.0,87370.0,0.09736]
[1767035019983,0.05756,87397.0,87372.0,0.0114575]
[1767035019984,0.15492,87397.0,87372.0,0.0114575]
[1767035020386,0.15492,87397.0,87373.0,0.29]
[1767035021089,0.00017163,87394.0,87376.0,0.00017163]
[1767035021289,3e-08,87394.0,87386.0,0.0114558]
[1767035021478,0.09736,87411.0,87380.0,0.27051152]
[1767035021679,0.1088118,87417.0,87380.0,0.28196812]
[1767035021888,0.1088118,87417.0,87392.0,0.0114549]
[1767035022086,0.1088118,87417.0,87393.0,0.09736]
[1767035022591,0.01162383,87414.0,87396.0,0.00017163]
[1767035023384,0.00017163,87414.0,87396.0,0.00017163]
[1767035024182,0.00017163,87414.0,87398.0,0.0114541]
[1767035024590,0.00017163,87414.0,87400.0,0.17315152]
[1767035024886,0.09736,87429.0,87400.0,0.17315152]
[1767035025096,0.09736,87429.0,87405.0,0.0114532]
[1767035025282,0.09736,87429.0,87406.0,0.15492]
[1767035025794,0.00017163,87426.0,87406.0,0.1663731]
[1767035026479,0.00017163,87426.0,87406.0,0.15492]
[1767035026682,0.01162223,87426.0,87399.0,0.0114541]
[1767035026881,0.00017163,87426.0,87396.0,0.00017163]
[1767035027192,0.0114524,87412.0,87396.0,8.202e-05]
[1767035027392,0.15492,87419.0,87396.0,8.202e-05]
[1767035027594,0.1663715,87419.0,87396.0,8.202e-05]
[1767035027893,0.0114519,87416.0,87396.0,8.202e-05]
[1767035030096,0.07215825,87416.0,87396.0,8.202e-05]
[1767035030492,0.06070635,87418.0,87397.0,0.0114543]
[1767035031999,9e-08,87398.0,87397.0,0.0114543]
[1767035032197,0.00017163,87406.0,87397.0,0.0114543]
[1767035039019,1.63e-06,87406.0,87397.0,0.0114543]
[1767035039212,0.1663716,87419.0,87397.0,0.0114543]
[1767035040113,0.1663716,87419.0,87399.0,0.00017163]
[1767035040417,0.00017163,87417.0,87399.0,0.00017163]
[1767035042013,0.0114522,87414.0,87399.0,0.00017163]
[1767035042410,0.01162343,87417.0,87399.0,0.00017163]
[1767035042615,0.00017163,87417.0,87399.0,0.00017163]
[1767035043016,0.0114522,87414.0,87399.0,0.00017163]
[1767035043210,0.01162343,87417.0,87399.0,0.00017163]
[1767035043611,0.00017163,87417.0,87399.0,0.00017163]
[1767035044010,0.01162343,87417.0,87399.0,0.00017163]
[1767035044212,0.00017163,87417.0,87399.0,0.00017163]
[1767035045315,0.0114521,87415.0,87399.0,0.00017163]
[1767035046122,0.011452,87416.0,87399.0,0.00017163]
[1767035046420,0.0114529,87409.0,87398.0,0.07988]
[1767035046612,0.0114529,87409.0,87396.0,0.05752]
[1767035047008,0.0114521,87415.0,87373.0,0.29]
[1767035047220,0.0114544,87397.0,87385.0,0.00017163]
[1767035047423,0.05752,87406.0,87384.0,0.05752]
[1767035047915,0.0689732,87406.0,87384.0,0.05752]
[1767035048113,0.05752,87406.0,87385.0,0.0114559]
[1767035048311,0.00017163,87404.0,87390.0,0.0114552]
[1767035048509,0.00017163,87404.0,87392.0,0.0114549]
[1767035048710,0.00017163,87404.0,87387.0,0.00017163]
[1767035048711,0.00017163,87404.0,87393.0,0.05752]
[1767035049815,0.06070635,87422.0,87403.0,0.0114535]
[1767035050018,0.00228761,87428.0,87410.0,0.17315152]
[1767035050215,0.06070635,87438.0,87415.0,0.0114519]
[1767035050409,0.06070635,87440.0,87411.0,0.15488]
[1767035050718,0.17315152,87440.0,87391.0,0.0114551]
[1767035050917,0.17315152,87440.0,87363.0,0.29]
[1767035050918,0.17315152,87430.0,87392.0,0.15488]
[1767035051118,0.05752,87430.0,87393.0,0.09736]
[1767035051718,0.0114509,87424.0,87398.0,0.0114541]
[1767035051915,0.0114509,87424.0,87402.0,0.00017163]
[1767035052119,0.0114509,87424.0,87403.0,0.05756]
[1767035052310,0.0114509,87424.0,87404.0,0.09736]
[1767035052713,0.05752,87430.0,87404.0,0.09736]
[1767035053618,0.011451,87423.0,87404.0,0.09736]
[1767035054122,0.05752,87430.0,87405.0,0.05752]
[1767035054123,0.0114502,87429.0,87405.0,0.05752]
[1767035054716,0.29137787,87430.0,87405.0,0.05752]
[1767035054920,0.23067152,87430.0,87405.0,0.05752]
[1767035055125,0.0114511,87423.0,87405.0,0.05752]
[1767035056723,0.0114506,87426.0,87405.0,0.05752]
[1767035056924,0.06070635,87428.0,87405.0,0.05752]
[1767035057219,0.0114505,87427.0,87405.0,0.05752]
[1767035057424,0.0114507,87425.0,87405.0,0.05752]
[1767035058025,0.0114506,87426.0,87405.0,0.05752]
[1767035058231,0.06070635,87429.0,87405.0,0.05752]
[1767035058526,0.06070635,87429.0,87408.0,0.0114528]
[1767035058726,0.0114498,87432.0,87405.0,0.05752]
[1767035058727,0.06070635,87432.0,87405.0,0.05752]
[1767035058928,0.05752,87431.0,87414.0,0.0114521]
[1767035059430,0.05752,87431.0,87413.0,0.05752]
[1767035059629,0.05752,87431.0,87413.0,0.15488]
[1767035063232,0.05752,87431.0,87416.0,0.0114517]
[1767035063434,0.05752,87431.0,87413.0,0.1493322]
[1767035064831,0.05752,87431.0,87413.0,0.13788]
[1767035065135,0.00017163,87434.0,87417.0,0.0114517]
[1767035065328,0.00017163,87434.0,87413.0,0.13788]
[1767035065535,0.00017163,87434.0,87416.0,0.0114518]
[1767035067326,0.00017163,87434.0,87418.0,0.0114515]
[1767035067934,0.09736,87440.0,87413.0,0.13788]
[1767035068137,0.1088088,87440.0,87417.0,0.0114516]
[1767035068438,0.09736,87440.0,87419.0,0.0114514]
[1767035068639,0.0114489,87439.0,87416.0,0.0114518]
[1767035068937,0.00017163,87436.0,87419.0,0.00017163]
[1767035069128,0.00017163,87436.0,87420.0,0.05752]
[1767035070539,0.00017163,87436.0,87420.0,0.04052]
[1767035077742,0.00017163,87436.0,87420.0,0.03452]
[1767035080732,0.06070635,87444.0,87420.0,0.03452]
[1767035080933,0.09732,87462.0,87430.0,0.17300814]
[1767035081138,0.09732,87462.0,87450.0,0.0114474]
[1767035081333,0.09732,87470.0,87442.0,0.05748]
[1767035081545,0.05748,87470.0,87443.0,0.09732]
[1767035081936,0.00017151,87465.0,87452.0,0.011447]
[1767035082646,0.00017151,87465.0,87449.0,0.0114475]
[1767035085249,0.00017151,87465.0,87443.0,0.09732]
[1767035085250,0.00017151,87465.0,87443.0,0.09193901]
[1767035085640,0.00017151,87465.0,87448.0,0.0114476]
[1767035085835,0.0114471,87453.0,87419.0,0.04069681]
[1767035086149,0.0114471,87453.0,87399.0,0.09377259]
[1767035086150,0.0114477,87449.0,87420.0,0.1548]
[1767035086350,0.00017151,87443.0,87426.0,0.00017151]
[1767035086650,0.00017151,87443.0,87428.0,0.0114502]
[1767035089447,0.00017151,87443.0,87426.0,0.00017151]
[1767035089650,0.00017151,87443.0,87426.0,0.01162201]
[1767035090551,0.1662469,87454.0,87429.0,0.0114501]
[1767035091650,0.00017151,87450.0,87429.0,0.0114501]
[1767035092146,0.00017151,87450.0,87426.0,0.00017151]
[1767035092147,1.51e-06,87450.0,87426.0,0.00017151]
[1767035092353,1.51e-06,87450.0,87438.0,0.0114489]
[1767035092544,1.51e-06,87450.0,87437.0,0.05748]
[1767035092949,1.51e-06,87450.0,87438.0,0.011449]
[1767035094850,1.51e-06,87450.0,87437.0,0.05748]
[1767035095051,0.09732,87472.0,87439.0,0.0114488]
[1767035095256,0.09732,87472.0,87448.0,0.0114476]
[1767035095548,0.05748,87477.0,87449.0,0.09732]
[1767035095749,0.0689239,87477.0,87451.0,0.0114472]
[1767035096055,0.00017151,87473.0,87455.0,0.00017151]
[1767035098255,0.00017151,87473.0,87449.0,0.09193881]
[1767035099360,0.00017151,87473.0,87452.0,0.01161861]
[1767035099558,0.00017151,87473.0,87456.0,0.0114465]
[1767035099763,0.01070635,87481.0,87452.0,0.00017151]
[1767035099957,0.0114407,87502.0,87477.0,0.0114437]
[1767035100162,0.0114394,87512.0,87477.0,0.1548]
[1767035100360,0.09732,87513.0,87488.0,0.0114424]
[1767035100561,0.09732,87513.0,87485.0,0.0114428]
[1767035100761,0.09732,87513.0,87482.0,0.0114432]
[1767035100762,0.0114396,87510.0,87482.0,0.0114432]
[1767035100962,0.01161141,87508.0,87490.0,0.00017151]
[1767035101259,0.00017151,87508.0,87490.0,0.00017151]
[1767035101459,0.0114406,87502.0,87490.0,0.00017151]
[1767035101658,0.0114406,87502.0,87475.0,0.011444]
[1767035101659,0.011441,87500.0,87484.0,0.09732]
[1767035101858,0.011441,87500.0,87477.0,0.09732]
[1767035102054,0.09732,87502.0,87437.0,0.061761]
[1767035102258,0.05748,87501.0,87470.0,0.0114447]
[1767035102557,0.00017151,87494.0,87477.0,0.00017151]
[1767035104962,0.011442,87492.0,87477.0,0.00017151]
[1767035105259,0.00017151,87494.0,87477.0,0.00017151]
[1767035106361,0.00017151,87494.0,87477.0,0.01161531]
[1767035106763,0.00017151,87494.0,87477.0,0.00017151]
[1767035107757,0.0114418,87493.0,87477.0,0.00017151]
[1767035108161,0.09728,87492.0,87442.0,0.03078137]
[1767035108466,0.09728,87492.0,87406.0,0.1902]
[1767035108467,0.0114427,87486.0,87462.0,0.0114457]
[1767035108667,0.0114427,87486.0,87463.0,0.15476]
[1767035109368,0.0689227,87487.0,87466.0,0.00017151]
[1767035109562,0.00017151,87485.0,87466.0,0.00017151]
[1767035114170,0.01161441,87485.0,87466.0,0.00017151]
[1767035115669,0.0114432,87483.0,87466.0,0.00017151]
[1767035115863,0.09728,87482.0,87466.0,0.00017151]
[1767035116279,0.0114437,87479.0,87466.0,0.00017151]
[1767035116484,0.0114433,87481.0,87441.0,0.09728]
[1767035116675,0.09728,87482.0,87442.0,0.09728]
[1767035116676,0.0114446,87472.0,87442.0,0.09728]
[1767035116876,0.15476,87471.0,87442.0,0.09728]
[1767035117082,0.09728,87470.0,87442.0,0.09728]
[1767035117587,0.00017151,87465.0,87449.0,0.0114475]
[1767035121087,0.00017151,87465.0,87447.0,0.00017151]
[1767035121282,0.00017151,87465.0,87448.0,0.0114475]
[1767035121487,0.06096431,87479.0,87442.0,0.09728]
[1767035121785,0.1426623,87502.0,87442.0,0.09728]
[1767035121786,0.09728,87481.0,87461.0,0.0114459]
[1767035121991,0.09728,87481.0,87443.0,0.1257901]
[1767035121992,0.09728,87481.0,87463.0,0.0114456]
[1767035122582,0.09745151,87481.0,87463.0,0.01161711]
[1767035123480,0.09745151,87481.0,87465.0,0.0114453]
[1767035123989,0.00017151,87481.0,87465.0,0.0114453]
[1767035124189,0.00017151,87481.0,87467.0,0.0114451]
[1767035124680,0.00017151,87481.0,87463.0,0.00017151]
[1767035125690,0.00017151,87481.0,87457.0,0.08045151]
[1767035126791,0.00017151,87481.0,87460.0,0.00017151]
[1767035127191,0.00017151,87481.0,87463.0,0.0114456]
[1767035128088,0.00017151,87481.0,87460.0,0.00017151]
[1767035129285,0.00017151,87481.0,87465.0,0.00915857]
[1767035129795,0.05744,87485.0,87467.0,0.0114451]
[1767035129994,0.05744,87485.0,87464.0,0.0114455]
[1767035130785,0.00017151,87483.0,87466.0,0.0114452]
[1767035131693,0.00017151,87483.0,87468.0,0.011445]
[1767035131885,0.03244,87485.0,87472.0,0.0114444]
[1767035132086,0.00744,87485.0,87470.0,0.0114447]
[1767035132394,0.07228,87486.0,87470.0,0.0114447]
[1767035132996,0.07228,87486.0,87460.0,0.00017151]
[1767035133294,0.07228,87486.0,87470.0,0.0114447]
[1767035133485,0.07228,87486.0,87472.0,0.0114445]
[1767035133892,0.07228,87486.0,87475.0,0.0114441]
[1767035134095,0.00017151,87487.0,87481.0,0.0114433]
[1767035134096,1e-08,87487.0,87481.0,0.0114433]
[1767035134295,1e-08,87487.0,87467.0,0.09728]
[1767035134296,0.09728,87495.0,87471.0,0.05744]
[1767035134500,0.05744,87497.0,87480.0,0.0114434]
[1767035135200,0.05761151,87497.0,87480.0,0.01161491]
[1767035138092,0.00017151,87497.0,87483.0,0.0114431]
[1767035138396,0.00017151,87497.0,87480.0,0.00017151]
[1767035138397,0.011439,87515.0,87494.0,0.0114416]
[1767035138598,0.15472,87514.0,87494.0,0.0114416]
[1767035138897,0.00228526,87518.0,87503.0,0.0114404]
[1767035139085,0.09728,87516.0,87491.0,0.011442]
[1767035139291,1.41e-06,87512.0,87495.0,0.00017141]
[1767035139482,1.41e-06,87512.0,87504.0,0.0114403]
[1767035139686,1.41e-06,87512.0,87508.0,0.0114397]
[1767035139886,0.06096431,87542.0,87495.0,0.05761141]
[1767035140094,0.15824431,87541.0,87496.0,0.09728]
[1767035140296,0.15472,87541.0,87504.0,0.0114402]
[1767035140889,0.01154986,87531.0,87514.0,0.00017141]
[1767035141198,0.0114372,87529.0,87514.0,0.00017141]
[1767035141708,0.15472,87530.0,87514.0,0.00017141]
[1767035143296,0.166157,87530.0,87514.0,0.00017141]
[1767035147304,0.166157,87530.0,87496.0,0.07589171]
[1767035148093,0.166157,87530.0,87505.0,0.0114402]
[1767035148293,0.166157,87530.0,87509.0,0.00017141]
[1767035148905,0.0114373,87528.0,87509.0,0.00017141]
[1767035149600,0.15472,87530.0,87509.0,0.00017141]
[1767035149792,0.06096431,87544.0,87520.0,0.17264207]
[1767035150102,0.00228447,87548.0,87520.0,0.09724]
[1767035150103,0.15464,87543.0,87520.0,0.09724]
[1767035150300,0.00228447,87548.0,87540.0,0.0114355]
[1767035150499,0.00228447,87548.0,87539.0,0.0114357]
[1767035151798,0.09724,87559.0,87546.0,0.0114348]
[1767035152006,0.0574,87558.0,87542.0,0.0114353]
[1767035152502,0.0574,87558.0,87540.0,0.17264207]
[1767035153105,0.0574,87558.0,87544.0,0.011435]
[1767035153805,0.0574,87558.0,87541.0,0.09724]
[1767035155005,0.0574,87558.0,87542.0,0.0114353]
[1767035155201,0.0574,87558.0,87541.0,0.09724]
[1767035155202,0.0574,87564.0,87547.0,0.0114347]
[1767035156092,0.0574,87564.0,87541.0,0.09724]
[1767035156298,0.0114327,87563.0,87541.0,0.09724]
[1767035157810,0.06096431,87588.0,87555.0,0.0114336]
[1767035158106,0.1660708,87577.0,87558.0,0.0001713]
[1767035158409,0.15464,87577.0,87558.0,0.0116046]
[1767035158607,0.15464,87577.0,87561.0,0.0114329]
[1767035158900,0.15464,87577.0,87558.0,0.0001713]
[1767035159098,0.0574,87576.0,87558.0,0.0001713]
[1767035160203,0.0972,87592.0,87560.0,0.17264207]
[1767035160402,0.0574,87591.0,87568.0,0.17264207]
[1767035160704,0.0574,87591.0,87575.0,0.011431]
[1767035161097,0.1546,87590.0,87580.0,0.0114304]
[1767035161308,0.0972,87589.0,87580.0,0.0114304]
[1767035161610,0.0972,87589.0,87576.0,0.0001713]
[1767035161611,0.09715,87588.0,87583.0,0.01143]
[1767035161797,0.0574,87590.0,87583.0,0.01143]
[1767035162107,0.05744,87589.0,87579.0,0.0114304]
[1767035162302,0.02710919,87599.0,87582.0,0.0114301]
[1767035162507,0.14884,87598.0,87582.0,0.0114301]
[1767035162910,0.02710919,87599.0,87576.0,0.0001713]
[1767035163103,0.0114255,87618.0,87589.0,0.17264207]
[1767035163410,0.11532,87617.0,87595.0,0.0001713]
[1767035163604,0.0114262,87613.0,87595.0,0.0001713]
[1767035163802,0.0114266,87610.0,87579.0,0.05744]
[1767035164004,0.05744,87609.0,87580.0,0.01786763]
[1767035164213,0.05744,87609.0,87581.0,0.01786763]
[1767035164510,0.05744,87609.0,87582.0,0.01786763]
[1767035164703,0.00017093,87604.0,87587.0,0.0001713]
[1767035164901,0.0972,87603.0,87587.0,0.0001713]
[1767035166499,0.00017093,87604.0,87587.0,0.0001713]
[1767035166705,0.15464,87603.0,87587.0,0.0001713]
[1767035167311,0.15464,87603.0,87587.0,0.0116007]
[1767035167711,0.00017093,87604.0,87587.0,0.0001713]
[1767035168016,0.05744,87602.0,87587.0,0.0001713]
[1767035168203,0.05744,87601.0,87593.0,0.0114286]
[1767035168515,0.05744,87600.0,87589.0,0.0114291]
[1767035169218,0.0114266,87609.0,87589.0,0.0114291]
[1767035169415,0.1546,87608.0,87589.0,0.0114291]
[1767035169714,0.0114269,87607.0,87589.0,0.0114291]
[1767035169906,0.0114269,87607.0,87589.0,0.00914541]
[1767035170817,0.0114269,87607.0,87587.0,0.0001713]
[1767035172915,0.15456,87606.0,87588.0,0.0114293]
[1767035173115,0.0114263,87612.0,87590.0,0.011429]
[1767035173414,0.0114221,87645.0,87590.0,0.011429]
[1767035173415,0.0114265,87610.0,87590.0,0.011429]
[1767035173617,0.09716,87609.0,87590.0,0.011429]
[1767035173821,0.0114268,87608.0,87587.0,0.0001713]
[1767035174614,0.0114272,87605.0,87587.0,0.0001713]
[1767035175218,0.0114268,87608.0,87587.0,0.0001713]
[1767035175423,0.0114271,87606.0,87587.0,0.0001713]
[1767035175920,0.06433356,87610.0,87560.0,0.011433]
[1767035176219,0.0114277,87601.0,87575.0,0.0114311]
[1767035176425,0.0114258,87615.0,87565.0,0.0114322]
[1767035176426,0.0114284,87596.0,87565.0,0.09716]
[1767035176629,0.09716,87595.0,87576.0,0.0114309]
[1767035176835,0.0001713,87594.0,87578.0,0.0114306]
[1767035177013,0.17264207,87630.0,87588.0,0.0114293]
[1767035177218,0.23460198,87630.0,87587.0,0.0114294]
[1767035177419,0.0114263,87612.0,87589.0,0.0114292]
[1767035177618,0.1546,87611.0,87589.0,0.0114292]
[1767035178027,0.0114257,87617.0,87592.0,0.0114288]
[1767035178222,0.0114251,87621.0,87598.0,0.011428]
[1767035178432,0.1546,87620.0,87600.0,0.0114277]
[1767035178628,0.0114249,87623.0,87600.0,0.0114277]
[1767035178927,0.0114251,87621.0,87591.0,0.0001713]
[1767035179228,0.05744,87620.0,87604.0,0.0114272]
[1767035179427,0.09716,87619.0,87604.0,0.0114272]
[1767035179625,0.09716,87619.0,87603.0,0.00017119]
[1767035179839,0.1085854,87619.0,87603.0,0.00017119]
[1767035180128,0.1085854,87619.0,87597.0,0.0114281]
[1767035180329,0.09716,87619.0,87598.0,0.01786687]